fUSD/lending_fUSD_20260625
["ID","MTS","AMOUNT","RATE_DAILY","PERIOD"]
[426368738,1782328199000,-1570.67,0.00013698,2]
[426368750,1782328199000,-500.0,0.00013698,2]
[426368735,1782328199000,-500.0,0.00013698,2]
[426368743,1782328199000,-1570.67,0.00013698,2]
[426368733,1782328199000,-500.0,0.00013698,2]
[426368741,1782328199000,-1570.67,0.00013698,2]
[426368742,1782328199000,-1570.67,0.00013698,2]
[426368747,1782328199000,-500.0,0.00013698,2]
[426368755,1782328199000,-510.39840993,0.00013698,2]
[426368752,1782328199000,-500.0,0.00013698,2]
[426368748,1782328199000,-500.0,0.00013698,2]
[426368736,1782328199000,-500.0,0.00013698,2]
[426368751,1782328199000,-500.0,0.00013698,2]
[426368753,1782328199000,-500.0,0.00013698,2]
[426368749,1782328199000,-500.0,0.00013698,2]
[426368746,1782328199000,-1570.67,0.00013698,2]
[426368756,1782328199000,-500.0,0.00013698,2]
[426368758,1782328199000,-500.0,0.00013698,2]
[426368768,1782328199000,-500.0,0.00013698,2]
[426368770,1782328199000,-500.0,0.00013698,2]
[426368757,1782328199000,-500.0,0.00013698,2]
[426368761,1782328199000,-500.0,0.00013698,2]
[426368762,1782328199000,-500.0,0.00013698,2]
[426368744,1782328199000,-1570.67,0.00013698,2]
[426368754,1782328199000,-500.0,0.00013698,2]
[426368739,1782328199000,-1570.67,0.00013698,2]
[426368720,1782328199000,-500.0,0.00013698,2]
[426368737,1782328199000,-503.0742401,0.00013698,2]
[426368707,1782328199000,-500.0,0.00013698,2]
[426368709,1782328199000,-500.0,0.00013698,2]
[426368760,1782328199000,-500.0,0.00013698,2]
[426368706,1782328199000,-500.0,0.00013698,2]
[426368710,1782328199000,-500.0,0.00013698,2]
[426368712,1782328199000,-500.0,0.00013698,2]
[426368714,1782328199000,-511.70912212,0.00013698,2]
[426368718,1782328199000,-500.0,0.00013698,2]
[426368715,1782328199000,-500.0,0.00013698,2]
[426368716,1782328199000,-500.0,0.00013698,2]
[426368713,1782328199000,-500.0,0.00013698,2]
[426368740,1782328199000,-1570.67,0.00013698,2]
[426368717,1782328199000,-500.0,0.00013698,2]
[426368721,1782328199000,-517.86777425,0.00013698,2]
[426368727,1782328199000,-500.0,0.00013698,2]
[426368722,1782328199000,-500.0,0.00013698,2]
[426368724,1782328199000,-500.0,0.00013698,2]
[426368723,1782328199000,-500.0,0.00013698,2]
[426368728,1782328199000,-500.0,0.00013698,2]
[426368726,1782328199000,-500.0,0.00013698,2]
[426368732,1782328199000,-500.0,0.00013698,2]
[426368730,1782328199000,-500.0,0.00013698,2]
[426368729,1782328199000,-500.0,0.00013698,2]
[426368734,1782328199000,-500.0,0.00013698,2]
[426368719,1782328199000,-500.0,0.00013698,2]
[426368766,1782328199000,-500.0,0.00013698,2]
[426368708,1782328199000,-500.0,0.00013698,2]
[426368759,1782328199000,-504.20791539,0.00013698,2]
[426368800,1782328199000,-500.0,0.00013698,2]
[426368803,1782328199000,-500.0,0.00013698,2]
[426368804,1782328199000,-500.0,0.00013698,2]
[426368798,1782328199000,-500.0,0.00013698,2]
[426368807,1782328199000,-500.0,0.00013698,2]
[426368808,1782328199000,-500.0,0.00013698,2]
[426368809,1782328199000,-500.0,0.00013698,2]
[426368810,1782328199000,-500.0,0.00013698,2]
[426368805,1782328199000,-500.0,0.00013698,2]
[426368812,1782328199000,-500.0,0.00013698,2]
[426368813,1782328199000,-500.0,0.00013698,2]
[426368811,1782328199000,-500.0,0.00013698,2]
[426368823,1782328199000,-293.67,0.00013698,2]
[426368814,1782328199000,-500.0,0.00013698,2]
[426368817,1782328199000,-500.0,0.00013698,2]
[426368816,1782328199000,-500.0,0.00013698,2]
[426368815,1782328199000,-500.0,0.00013698,2]
[426368819,1782328199000,-500.0,0.00013698,2]
[426368821,1782328199000,-500.0,0.00013698,2]
[426368818,1782328199000,-500.0,0.00013698,2]
[426368820,1782328199000,-500.0,0.00013698,2]
[426368824,1782328199000,-500.0,0.00013698,2]
[426368825,1782328199000,-500.0,0.00013698,2]
[426368826,1782328199000,-500.0,0.00013698,2]
[426368763,1782328199000,-500.0,0.00013698,2]
[426368802,1782328199000,-500.0,0.00013698,2]
[426368799,1782328199000,-500.0,0.00013698,2]
[426368711,1782328199000,-500.0,0.00013698,2]
[426368793,1782328199000,-500.0,0.00013698,2]
[426368767,1782328199000,-500.0,0.00013698,2]
[426368765,1782328199000,-500.0,0.00013698,2]
[426368771,1782328199000,-500.0,0.00013698,2]
[426368774,1782328199000,-500.0,0.00013698,2]
[426368775,1782328199000,-500.0,0.00013698,2]
[426368797,1782328199000,-500.0,0.00013698,2]
[426368773,1782328199000,-500.0,0.00013698,2]
[426368778,1782328199000,-500.0,0.00013698,2]
[426368777,1782328199000,-500.0,0.00013698,2]
[426368772,1782328199000,-500.0,0.00013698,2]
[426368781,1782328199000,-500.0,0.00013698,2]
[426368783,1782328199000,-500.0,0.00013698,2]
[426368784,1782328199000,-500.0,0.00013698,2]
[426368776,1782328199000,-500.0,0.00013698,2]
[426368782,1782328199000,-500.0,0.00013698,2]
[426368779,1782328199000,-500.0,0.00013698,2]
[426368785,1782328199000,-500.0,0.00013698,2]
[426368789,1782328199000,-500.0,0.00013698,2]
[426368790,1782328199000,-500.0,0.00013698,2]
[426368796,1782328199000,-500.0,0.00013698,2]
[426368794,1782328199000,-500.0,0.00013698,2]
[426368792,1782328199000,-500.0,0.00013698,2]
[426368787,1782328199000,-500.0,0.00013698,2]
[426368795,1782328199000,-500.0,0.00013698,2]
[426368788,1782328199000,-500.0,0.00013698,2]
[426368786,1782328199000,-500.0,0.00013698,2]
[426368791,1782328199000,-500.0,0.00013698,2]
[426368865,1782328200000,-500.0,0.00013698,2]
[426368866,1782328200000,-500.0,0.00013698,2]
[426368874,1782328200000,-500.0,0.00013698,2]
[426368875,1782328200000,-207.02,0.00013698,2]
[426368864,1782328200000,-500.0,0.00013698,2]
[426368870,1782328200000,-500.0,0.00013698,2]
[426368871,1782328200000,-500.0,0.00013698,2]
[426368872,1782328200000,-500.0,0.00013698,2]
[426368873,1782328200000,-500.0,0.00013698,2]
[426368863,1782328200000,-500.0,0.00013698,2]
[426368861,1782328200000,-500.0,0.00013698,2]
[426368869,1782328200000,-500.0,0.00013698,2]
[426368868,1782328200000,-500.0,0.00013698,2]
[426368890,1782328200000,-500.0,0.00013698,2]
[426368885,1782328200000,-500.0,0.00013698,2]
[426368879,1782328200000,-513.71447224,0.00013698,2]
[426368880,1782328200000,-500.0,0.00013698,2]
[426368882,1782328200000,-500.0,0.00013698,2]
[426368881,1782328200000,-500.0,0.00013698,2]
[426368877,1782328200000,-500.0,0.00013698,2]
[426368889,1782328200000,-500.0,0.00013698,2]
[426368888,1782328200000,-500.0,0.00013698,2]
[426368884,1782328200000,-500.0,0.00013698,2]
[426368887,1782328200000,-500.0,0.00013698,2]
[426368886,1782328200000,-500.0,0.00013698,2]
[426368891,1782328200000,-156.09,0.00013698,2]
[426368851,1782328200000,-500.0,0.00013698,2]
[426368876,1782328200000,-500.0,0.00013698,2]
[426368857,1782328200000,-500.0,0.00013698,2]
[426368840,1782328200000,-750.96,0.00013698,2]
[426368858,1782328200000,-500.0,0.00013698,2]
[426368833,1782328200000,-500.0,0.00013698,2]
[426368830,1782328200000,-500.0,0.00013698,2]
[426368829,1782328200000,-500.0,0.00013698,2]
[426368828,1782328200000,-500.0,0.00013698,2]
[426368835,1782328200000,-207.73404402,0.00013698,2]
[426368827,1782328200000,-532.63504897,0.00013698,2]
[426368832,1782328200000,-500.0,0.00013698,2]
[426368834,1782328200000,-500.0,0.00013698,2]
[426368831,1782328200000,-500.0,0.00013698,2]
[426368838,1782328200000,-750.96,0.00013698,2]
[426368839,1782328200000,-750.96,0.00013698,2]
[426368849,1782328200000,-500.0,0.00013698,2]
[426368848,1782328200000,-500.0,0.00013698,2]
[426368860,1782328200000,-500.0,0.00013698,2]
[426368847,1782328200000,-500.0,0.00013698,2]
[426368841,1782328200000,-750.96,0.00013698,2]
[426368902,1782328200000,-150.0,0.00013737,2]
[426368845,1782328200000,-750.96,0.00013698,2]
[426368846,1782328200000,-500.0,0.00013698,2]
[426368842,1782328200000,-750.96,0.00013698,2]
[426368844,1782328200000,-750.96,0.00013698,2]
[426368852,1782328200000,-500.0,0.00013698,2]
[426368850,1782328200000,-500.0,0.00013698,2]
[426368853,1782328200000,-500.0,0.00013698,2]
[426368859,1782328200000,-500.0,0.00013698,2]
[426368856,1782328200000,-500.0,0.00013698,2]
[426368855,1782328200000,-500.0,0.00013698,2]
[426368854,1782328200000,-500.0,0.00013698,2]
[426368836,1782328200000,-750.96,0.00013698,2]
[426368903,1782328200000,-150.0,0.00013737,2]
[426368867,1782328200000,-500.0,0.00013698,2]
[426368899,1782328200000,-150.0,0.00013725,2]
[426368920,1782328200000,-500.0,0.00013801,2]
[426368935,1782328200000,-150.0,0.00013853,2]
[426368936,1782328200000,-150.0,0.00013858,2]
[426368931,1782328200000,-150.0,0.00013837,2]
[426368934,1782328200000,-150.0,0.00013844,2]
[426368937,1782328200000,-150.0,0.00013862,2]
[426368942,1782328200000,-150.0,0.0001388,2]
[426368932,1782328200000,-150.0,0.00013841,2]
[426368938,1782328200000,-150.0,0.00013871,2]
[426368943,1782328200000,-150.0,0.00013887,2]
[426368940,1782328200000,-150.0,0.00013879,2]
[426368939,1782328200000,-150.0,0.00013875,2]
[426368944,1782328200000,-150.0,0.0001389,2]
[426368922,1782328200000,-150.0,0.00013808,2]
[426368945,1782328200000,-150.0,0.00013892,2]
[426368952,1782328200000,-150.0,0.00013926,2]
[426368948,1782328200000,-150.0,0.00013908,2]
[426368949,1782328200000,-150.0,0.00013909,2]
[426368957,1782328200000,-500.0,0.00013947,2]
[426368950,1782328200000,-150.0,0.00013916,2]
[426368946,1782328200000,-567.55494456,0.00013895,2]
[426368951,1782328200000,-150.0,0.00013925,2]
[426368956,1782328200000,-150.0,0.00013945,2]
[426368953,1782328200000,-150.0,0.00013937,2]
[426368955,1782328200000,-150.0,0.00013944,2]
[426368954,1782328200000,-150.0,0.00013942,2]
[426368958,1782328200000,-500.0,0.00013947,2]
[426368892,1782328200000,-200.0,0.00013699,2]
[426368947,1782328200000,-150.0,0.00013904,2]
[426368925,1782328200000,-286.04,0.00013815,2]
[426368959,1782328200000,-500.0,0.00013947,2]
[426368927,1782328200000,-150.0,0.00013817,2]
[426368923,1782328200000,-150.0,0.00013809,2]
[426368894,1782328200000,-29767.09,0.00013699,2]
[426368895,1782328200000,-150.0,0.00013702,2]
[426368898,1782328200000,-150.0,0.00013723,2]
[426368893,1782328200000,-2500.0,0.00013699,2]
[426368896,1782328200000,-150.0,0.00013707,2]
[426368900,1782328200000,-150.0,0.00013737,2]
[426368904,1782328200000,-150.0,0.00013737,2]
[426368905,1782328200000,-150.0,0.0001374,2]
[426368907,1782328200000,-150.0,0.00013748,2]
[426368910,1782328200000,-1834.95572868,0.00013768,2]
[426368909,1782328200000,-150.0,0.00013762,2]
[426368906,1782328200000,-150.0,0.00013744,2]
[426368915,1782328200000,-150.0,0.00013787,2]
[426368897,1782328200000,-150.0,0.00013707,2]
[426368930,1782328200000,-150.0,0.00013835,2]
[426368912,1782328200000,-150.0,0.00013774,2]
[426368913,1782328200000,-150.0,0.0001378,2]
[426368916,1782328200000,-150.0,0.00013791,2]
[426368914,1782328200000,-191.35,0.00013784,2]
[426368908,1782328200000,-150.0,0.00013757,2]
[426368929,1782328200000,-150.0,0.00013824,2]
[426368918,1782328200000,-573.70517454,0.00013801,2]
[426368928,1782328200000,-150.0,0.00013821,2]
[426368911,1782328200000,-150.0,0.00013773,2]
[426368919,1782328200000,-1570.67,0.00013801,2]
[426368917,1782328200000,-150.0,0.00013798,2]
[426368921,1782328200000,-750.96,0.00013801,2]
[426368924,1782328200000,-150.0,0.00013813,2]
[426369004,1782328201000,-150.0,0.00014127,2]
[426369022,1782328201000,-150.0,0.00014187,2]
[426369006,1782328201000,-150.0,0.00014128,2]
[426369000,1782328201000,-150.0,0.00014094,2]
[426369007,1782328201000,-150.0,0.0001413,2]
[426368991,1782328201000,-150.0,0.00014054,2]
[426369010,1782328201000,-150.0,0.00014144,2]
[426368999,1782328201000,-150.0,0.00014091,2]
[426369009,1782328201000,-150.0,0.00014139,2]
[426368994,1782328201000,-150.0,0.0001407,2]
[426368992,1782328201000,-150.0,0.00014059,2]
[426368998,1782328201000,-150.0,0.00014087,2]
[426369008,1782328201000,-150.0,0.00014137,2]
[426369017,1782328201000,-150.0,0.00014161,2]
[426369002,1782328201000,-150.0,0.00014109,2]
[426369001,1782328201000,-150.0,0.00014094,2]
[426369011,1782328201000,-150.0,0.00014146,2]
[426369014,1782328201000,-7196.64457979,0.00014158,2]
[426369015,1782328201000,-1624.11926312,0.00014158,2]
[426369016,1782328201000,-1178.00238394,0.00014158,2]
[426369013,1782328201000,-1155.58666498,0.00014158,2]
[426369012,1782328201000,-150.0,0.00014154,2]
[426369018,1782328201000,-150.0,0.00014164,2]
[426369020,1782328201000,-150.0,0.00014178,2]
[426369021,1782328201000,-150.0,0.00014182,2]
[426369024,1782328201000,-150.0,0.00014195,2]
[426368989,1782328201000,-150.0,0.00014037,2]
[426369003,1782328201000,-150.0,0.00014111,2]
[426368993,1782328201000,-150.0,0.0001406,2]
[426368972,1782328201000,-150.0,0.00013987,2]
[426368988,1782328201000,-150.0,0.00014036,2]
[426369019,1782328201000,-150.0,0.00014166,2]
[426368962,1782328201000,-150.0,0.00013952,2]
[426368960,1782328201000,-500.0,0.00013947,2]
[426368961,1782328201000,-500.0,0.00013947,2]
[426368968,1782328201000,-150.0,0.00013976,2]
[426368969,1782328201000,-150.0,0.00013981,2]
[426368964,1782328201000,-150.0,0.00013959,2]
[426368967,1782328201000,-166.35126171,0.00013964,2]
[426368963,1782328201000,-661.27812954,0.00013955,2]
[426368965,1782328201000,-150.0,0.00013963,2]
[426368970,1782328201000,-150.0,0.00013987,2]
[426368983,1782328201000,-150.0,0.00014018,2]
[426368979,1782328201000,-250.0,0.00014,2]
[426368990,1782328201000,-150.0,0.00014043,2]
[426368975,1782328201000,-60000.0,0.0001399,2]
[426368981,1782328201000,-150.0,0.0001401,2]
[426368971,1782328201000,-150.0,0.00013987,2]
[426368973,1782328201000,-150.0,0.00013987,2]
[426368976,1782328201000,-150.0,0.00013993,2]
[426368974,1782328201000,-150.0,0.00013987,2]
[426368978,1782328201000,-3774.403932,0.00014,2]
[426368980,1782328201000,-150.0,0.00014009,2]
[426368996,1782328201000,-150.0,0.00014074,2]
[426368985,1782328201000,-150.0,0.00014027,2]
[426368986,1782328201000,-4429.66254056,0.00014031,2]
[426368995,1782328201000,-150.0,0.00014073,2]
[426368984,1782328201000,-150.0,0.00014023,2]
[426368997,1782328201000,-150.0,0.00014077,2]
[426368977,1782328201000,-150.0,0.00013999,2]
[426369036,1782328201000,-150.0,0.00014237,2]
[426369070,1782328201000,-150.0,0.00014397,2]
[426369025,1782328201000,-150.0,0.000142,2]
[426369061,1782328201000,-150.0,0.00014344,2]
[426369058,1782328201000,-150.0,0.00014335,2]
[426369065,1782328201000,-150.0,0.00014365,2]
[426369067,1782328201000,-150.0,0.0001438,2]
[426369068,1782328201000,-150.0,0.00014383,2]
[426369071,1782328201000,-150.0,0.000144,2]
[426369066,1782328201000,-150.0,0.0001438,2]
[426369069,1782328201000,-150.0,0.00014387,2]
[426369074,1782328201000,-150.0,0.00014414,2]
[426369072,1782328201000,-150.0,0.00014401,2]
[426369073,1782328201000,-150.0,0.00014404,2]
[426369076,1782328201000,-150.0,0.0001442,2]
[426369075,1782328201000,-150.0,0.00014415,2]
[426369078,1782328201000,-150.0,0.00014431,2]
[426369077,1782328201000,-661.27812954,0.00014428,2]
[426369084,1782328201000,-150.0,0.00014464,2]
[426369081,1782328201000,-150.0,0.00014447,2]
[426369083,1782328201000,-150.0,0.00014456,2]
[426369082,1782328201000,-150.0,0.00014451,2]
[426369085,1782328201000,-150.0,0.00014465,2]
[426369079,1782328201000,-150.0,0.00014437,2]
[426369080,1782328201000,-150.0,0.00014438,2]
[426369087,1782328201000,-150.0,0.00014475,2]
[426369088,1782328201000,-150.0,0.00014481,2]
[426369086,1782328201000,-286.04,0.00014473,2]
[426369089,1782328201000,-559.14,0.00014484,2]
[426369026,1782328201000,-150.0,0.00014201,2]
[426369060,1782328201000,-150.0,0.00014337,2]
[426369055,1782328201000,-150.0,0.0001432,2]
[426369090,1782328201000,-150.0,0.00014487,2]
[426369062,1782328201000,-150.0,0.00014346,2]
[426369053,1782328201000,-150.0,0.0001431,2]
[426369028,1782328201000,-150.0,0.00014204,2]
[426369030,1782328201000,-314.0,0.00014214,2]
[426369032,1782328201000,-567.55494456,0.00014216,2]
[426369034,1782328201000,-150.0,0.00014229,2]
[426369033,1782328201000,-150.0,0.00014219,2]
[426369031,1782328201000,-317.0,0.00014214,2]
[426369035,1782328201000,-150.0,0.00014237,2]
[426369038,1782328201000,-150.0,0.00014237,2]
[426369037,1782328201000,-150.0,0.00014237,2]
[426369048,1782328201000,-150.0,0.00014279,2]
[426369050,1782328201000,-150.0,0.00014292,2]
[426369039,1782328201000,-150.0,0.00014237,2]
[426369049,1782328201000,-150.0,0.00014287,2]
[426369029,1782328201000,-150.0,0.00014212,2]
[426369047,1782328201000,-150.0,0.00014274,2]
[426369040,1782328201000,-150.0,0.00014237,2]
[426369063,1782328201000,-150.0,0.00014347,2]
[426369054,1782328201000,-150.0,0.00014313,2]
[426369057,1782328201000,-150.0,0.0001433,2]
[426369064,1782328201000,-150.0,0.00014363,2]
[426369056,1782328201000,-150.0,0.00014328,2]
[426369051,1782328201000,-150.0,0.00014296,2]
[426369042,1782328201000,-150.0,0.00014255,2]
[426369041,1782328201000,-150.0,0.00014245,2]
[426369044,1782328201000,-150.0,0.0001427,2]
[426369046,1782328201000,-150.0,0.00014273,2]
[426369043,1782328201000,-150.0,0.00014262,2]
[426369052,1782328201000,-150.0,0.00014308,2]
[426369132,1782328202000,-150.0,0.00014665,2]
[426369139,1782328202000,-150.0,0.000147,2]
[426369137,1782328202000,-150.0,0.00014687,2]
[426369138,1782328202000,-150.0,0.00014694,2]
[426369129,1782328202000,-150.0,0.00014653,2]
[426369116,1782328202000,-150.0,0.00014594,2]
[426369140,1782328202000,-150.0,0.00014701,2]
[426369130,1782328202000,-150.0,0.00014657,2]
[426369128,1782328202000,-150.0,0.0001465,2]
[426369124,1782328202000,-150.0,0.00014633,2]
[426369125,1782328202000,-150.0,0.00014637,2]
[426369141,1782328202000,-150.0,0.00014712,2]
[426369135,1782328202000,-150.0,0.00014676,2]
[426369144,1782328202000,-150.0,0.0001473,2]
[426369131,1782328202000,-150.0,0.00014661,2]
[426369136,1782328202000,-150.0,0.00014683,2]
[426369142,1782328202000,-150.0,0.00014717,2]
[426369146,1782328202000,-150.0,0.00014737,2]
[426369149,1782328202000,-150.0,0.00014737,2]
[426369148,1782328202000,-150.0,0.00014737,2]
[426369153,1782328202000,-500.0,0.0001474,2]
[426369152,1782328202000,-500.0,0.0001474,2]
[426369147,1782328202000,-150.0,0.00014737,2]
[426369145,1782328202000,-150.0,0.00014734,2]
[426369150,1782328202000,-448.76706005,0.0001474,2]
[426369117,1782328202000,-150.0,0.00014595,2]
[426369151,1782328202000,-500.0,0.0001474,2]
[426369134,1782328202000,-150.0,0.00014666,2]
[426369122,1782328202000,-150.0,0.00014621,2]
[426369106,1782328202000,-567.55494456,0.00014538,2]
[426369121,1782328202000,-150.0,0.00014616,2]
[426369143,1782328202000,-150.0,0.00014726,2]
[426369096,1782328202000,-150.0,0.00014493,2]
[426369102,1782328202000,-150.0,0.00014529,2]
[426369101,1782328202000,-150.0,0.00014522,2]
[426369097,1782328202000,-150.0,0.00014498,2]
[426369095,1782328202000,-150.0,0.00014487,2]
[426369092,1782328202000,-150.0,0.00014487,2]
[426369100,1782328202000,-150.0,0.00014515,2]
[426369094,1782328202000,-150.0,0.00014487,2]
[426369091,1782328202000,-150.0,0.00014487,2]
[426369099,1782328202000,-150.0,0.00014511,2]
[426369114,1782328202000,-150.0,0.00014584,2]
[426369111,1782328202000,-150.0,0.00014566,2]
[426369103,1782328202000,-150.0,0.0001453,2]
[426369112,1782328202000,-150.0,0.0001457,2]
[426369104,1782328202000,-150.0,0.00014532,2]
[426369105,1782328202000,-150.0,0.00014537,2]
[426369109,1782328202000,-150.0,0.00014558,2]
[426369113,1782328202000,-150.0,0.00014582,2]
[426369107,1782328202000,-150.0,0.00014548,2]
[426369108,1782328202000,-150.0,0.00014548,2]
[426369110,1782328202000,-150.0,0.00014565,2]
[426369115,1782328202000,-150.0,0.00014587,2]
[426369123,1782328202000,-150.0,0.00014629,2]
[426369120,1782328202000,-150.0,0.00014612,2]
[426369126,1782328202000,-150.0,0.00014639,2]
[426369119,1782328202000,-150.0,0.00014603,2]
[426369118,1782328202000,-150.0,0.00014599,2]
[426369155,1782328202000,-1570.67,0.00014743,2]
[426369188,1782328202000,-5800.0,0.00014866,2]
[426369167,1782328202000,-150.0,0.00014791,2]
[426369184,1782328202000,-25000.0,0.00014856,3]
[426369185,1782328202000,-150.0,0.00014858,2]
[426369187,1782328202000,-25000.0,0.00014865,3]
[426369193,1782328202000,-150.0,0.00014879,2]
[426369194,1782328202000,-25000.0,0.00014882,3]
[426369196,1782328202000,-150.0,0.00014885,2]
[426369195,1782328202000,-5800.0,0.00014883,2]
[426369199,1782328202000,-5800.0,0.00014891,2]
[426369197,1782328202000,-150.0,0.00014886,2]
[426369201,1782328202000,-5800.0,0.00014891,2]
[426369204,1782328202000,-500.0,0.00014899,2]
[426369198,1782328202000,-25000.0,0.00014891,3]
[426369205,1782328202000,-500.0,0.00014899,2]
[426369206,1782328202000,-500.0,0.00014899,2]
[426369202,1782328202000,-150.0,0.00014895,2]
[426369216,1782328202000,-150.0,0.00014921,2]
[426369208,1782328202000,-661.27812954,0.000149,2]
[426369207,1782328202000,-5800.0,0.000149,2]
[426369209,1782328202000,-5800.0,0.000149,2]
[426369210,1782328202000,-25000.0,0.000149,3]
[426369217,1782328202000,-150.0,0.00014931,2]
[426369218,1782328202000,-150.0,0.00014936,2]
[426369212,1782328202000,-150.0,0.00014903,2]
[426369211,1782328202000,-150.0,0.00014902,2]
[426369214,1782328202000,-150.0,0.00014915,2]
[426369215,1782328202000,-150.0,0.00014919,2]
[426369165,1782328202000,-150.0,0.00014785,2]
[426369186,1782328202000,-567.55494456,0.00014859,2]
[426369213,1782328202000,-150.0,0.00014913,2]
[426369203,1782328202000,-500.0,0.00014899,2]
[426369183,1782328202000,-150.0,0.00014856,2]
[426369166,1782328202000,-150.0,0.00014786,2]
[426369182,1782328202000,-150.0,0.00014852,2]
[426369159,1782328202000,-150.0,0.00014751,2]
[426369154,1782328202000,-500.0,0.0001474,2]
[426369156,1782328202000,-500.0,0.00014743,2]
[426369162,1782328202000,-150.0,0.00014772,2]
[426369160,1782328202000,-150.0,0.00014767,2]
[426369161,1782328202000,-150.0,0.00014767,2]
[426369164,1782328202000,-150.0,0.00014784,2]
[426369158,1782328202000,-150.0,0.00014749,2]
[426369168,1782328202000,-1172.9,0.000148,2]
[426369171,1782328202000,-150.0,0.00014808,2]
[426369173,1782328202000,-150.0,0.0001482,2]
[426369170,1782328202000,-150.0,0.00014804,2]
[426369157,1782328202000,-750.96,0.00014743,2]
[426369174,1782328202000,-150.0,0.00014822,2]
[426369191,1782328202000,-5800.0,0.00014874,2]
[426369180,1782328202000,-150.0,0.00014844,2]
[426369192,1782328202000,-150.0,0.00014877,2]
[426369190,1782328202000,-25000.0,0.00014874,3]
[426369172,1782328202000,-150.0,0.00014818,2]
[426369176,1782328202000,-150.0,0.00014835,2]
[426369181,1782328202000,-25000.0,0.00014847,3]
[426369179,1782328202000,-150.0,0.0001484,2]
[426369177,1782328202000,-150.0,0.00014836,2]
[426369175,1782328202000,-25000.0,0.0001483,3]
[426369169,1782328202000,-150.0,0.00014801,2]
[426369189,1782328202000,-150.0,0.00014868,2]
[426369178,1782328202000,-25000.0,0.00014838,3]
[426369266,1782328203000,-500.0,0.00014998,2]
[426369267,1782328203000,-326.08,0.00014998,2]
[426369265,1782328203000,-500.0,0.00014998,2]
[426369263,1782328203000,-750.96,0.00014998,2]
[426369251,1782328203000,-1570.67,0.00014998,2]
[426369257,1782328203000,-500.0,0.00014998,2]
[426369256,1782328203000,-500.0,0.00014998,2]
[426369250,1782328203000,-1570.67,0.00014998,2]
[426369255,1782328203000,-347.58899527,0.00014998,2]
[426369259,1782328203000,-500.0,0.00014998,2]
[426369246,1782328203000,-500.0,0.00014988,2]
[426369264,1782328203000,-750.96,0.00014998,2]
[426369268,1782328203000,-1080.90492825,0.00014999,5]
[426369271,1782328203000,-1570.67,0.00014999,2]
[426369262,1782328203000,-750.96,0.00014998,2]
[426369260,1782328203000,-301.5,0.00014998,2]
[426369269,1782328203000,-1181.77510731,0.00014999,5]
[426369272,1782328203000,-1570.67,0.00014999,2]
[426369270,1782328203000,-686.99,0.00014999,2]